Cogmind - Beta 13 @@@ ROGUE MODE // 2024.04.16 @ 23:29:24 Player: Powerlich_soros Result: Destroyed by G-34 Mercenary with Small Laser Performance ------------- Evolutions (0) 0 Regions Visited (1) 200 Robots Destroyed (18) 90 Value Destroyed (270) 270 Prototype IDs (0) 0 Alien Tech Used (0) 0 Bonus (0) 0 TOTAL SCORE: 560 Bonus ------- None Cogmind --------- Core Integrity 0/250 Matter 280/300 Energy 125/125 System Corruption 0% Temperature Cool (6) Movement Rolling (90) Location -10/Materials Parts ------- > --- POWER (1) -------- Light Ion Engine > --- PROPULSION (2) --- Wheel Compact Wheel > --- UTILITY (2) ------ Medium Storage Unit Transport Network Coupler > --- WEAPON (2) ------- Assault Rifle Light Assault Rifle > --- INVENTORY (10) --- Light Ion Engine Small Storage Unit ECM Suite Medium Laser Grenade Launcher Datajack Hammer Hammer Peak State ------------ > --- POWER ------------ Light Ion Engine > --- PROPULSION ------- Wheel Compact Wheel > --- UTILITY ---------- Medium Storage Unit Sensor Array > --- WEAPON ----------- Assault Rifle Hammer > --- INVENTORY -------- Light Ion Engine Light Ion Engine Small Storage Unit ECM Suite EM Pulse Gun Medium Laser Light Assault Rifle Grenade Launcher Datajack Hammer [Rating: 8] Favorites ----------- Power Light Ion Engine Engine Light Ion Engine Propulsion Compact Wheel Wheel Compact Wheel Utility Medium Storage Unit Device Sensor Array Storage Medium Storage Unit Processor Transport Network Coupler Weapon Hammer Energy Gun Medium Laser Ballistic Gun Assault Rifle Impact Weapon Hammer Build | -11 -10 ------- Run | Yrd Mat Slots Evolved . | . . Power . | . . Propulsion . | . . Utility . | . . Weapon . | . . Parts Attached 18 | 6 12 Power 3 | 1 2 Engine 3 | 1 2 Core . | . . Reactor . | . . Propulsion 3 | 2 1 Treads . | . . Leg . | . . Wheel 3 | 2 1 Hover . | . . Flight . | . . Utility 4 | 1 3 Device 1 | . 1 Storage 2 | 1 1 Processor 1 | . 1 Hackware . | . . Protection . | . . Artifact . | . . Weapon 8 | 2 6 Energy Gun 3 | 2 1 Energy Cannon . | . . Ballistic Gun 3 | . 3 Ballistic Cannon . | . . Launcher . | . . Special Weapon . | . . Impact Weapon 2 | . 2 Slashing Weapon . | . . Piercing Weapon . | . . Special Melee Weapon . | . . Unidentified Prototypes . | . . Parts Lost 3 | . 3 Power 1 | . 1 Propulsion 1 | . 1 Utility 1 | . 1 Weapon . | . . Highest Loss Streak 2 | . 2 To Critical Strikes . | . . Average Slot Usage (%) 93 | . 93 Engine 13 | . 13 Wheel 26 | . 26 Device 7 | . 7 Storage 14 | . 14 Processor 2 | . 2 Energy Gun 6 | . 6 Ballistic Gun 10 | . 10 Impact Weapon 10 | . 10 Naked Turns . | . . Heaviest Build 18 | 14 18 Greatest Support 26 | 26 26 Greatest Overweight (x) 1 | . 1 Average Overweight (x) . | . . Largest Inventory Capacity 10 | 8 10 Average Capacity 9 | 6 9 Most Carried 10 | 2 10 Average Carried 7 | . 7 Final Capacity 10 | 8 10 Final Carried 8 | 2 8 Class Distribution -------------------- 100% | Mutant Dominant Class ---------------- Mutant | -10/Materials Resources | -11 -10 ----------- Run | Yrd Mat Matter Collected 449 | 224 225 Remotely . | . . Salvage Created 345 | . 345 Parts 34 | . 34 Haulers Intercepted 1 | . 1 Recyclers Shooed . | . . Parts Field Recycled . | . . Retrieved Matter . | . . Parts Self-Destructed . | . . Prevented . | . . Kills | -11 -10 ------- Run | Yrd Mat Combat Hostiles Destroyed 9 | . 9 Melee 3 | . 3 Guns 4 | . 4 AOE 1 | . 1 Classes Destroyed 6 | . 6 Builder 2 | . 2 Hauler 1 | . 1 Operator 4 | . 4 Watcher 2 | . 2 Swarmer 6 | . 6 Grunt 3 | . 3 Best Kill Streak 3 | . 3 Combat Bots Only 3 | . 3 Max Kills in Single Turn 1 | . 1 Gunslinging . | . . Exploded 1 | . 1 Melee 1 | . 1 Uniques/NPCs Destroyed . | . . Combat | -11 -10 -------- Run | Yrd Mat Hostile Shots Fired 88 | . 88 Missed 26 | . 26 Damage Taken 672 | . 672 Core 259 | . 259 Absorbed by Shields . | . . Core Remaining (%) 100 | 100 . Volleys Fired 33 | . 33 Largest 2 | . 2 Hottest 90 | . 90 Shots Fired 66 | . 66 Gun 66 | . 66 Cannon . | . . Launcher . | . . Special . | . . Kinetic 36 | . 36 Thermal 24 | . 24 Explosive . | . . Electromagnetic 6 | . 6 Robot Hit Streak 8 | . 8 Robot Miss Streak 4 | . 4 Penetration Max . | . . Secondary Targets . | . . Shots Hit Robots 46 | . 46 Core Hits 17 | . 17 Critical Kills . | . . Critical Parts Destroyed 2 | . 2 Critical Strikes 3 | . 3 Burn 1 | . 1 Smash 2 | . 2 Melee Attacks 39 | . 39 Impact 39 | . 39 Slashing . | . . Piercing . | . . Sneak Attacks 4 | . 4 Combat Hostiles . | . . Follow-up Attacks 2 | . 2 Damage Inflicted 882 | . 882 Guns 368 | . 368 Cannons . | . . Explosions 24 | . 24 Melee 489 | . 489 Ramming 1 | . 1 Kinetic 176 | . 176 Thermal 176 | . 176 Explosive . | . . Electromagnetic 40 | . 40 Impact 489 | . 489 Slashing . | . . Piercing . | . . Highest Corruption . | . . Average Corruption . | . . Corruption Purged . | . . Corruption Blocked . | . . Overload Shots . | . . Overflow Damage 171 | . 171 Projectiles . | . . Explosions . | . . Melee 171 | . 171 Knockbacks 2 | . 2 Impact 1 | . 1 Kinetic . | . . Secondary 1 | . 1 Self-Inflicted Damage 33 | . 33 Shots 1 | . 1 Rammed 1 | . 1 Targets Rammed 1 | . 1 Kicked . | . . Crushed . | . . Highest Temperature 102 | . 102 Average Temperature 20 | . 20 Received Heat Transfer 90 | . 90 Siege Activations . | . . Robots Corrupted . | . . Combat Hostiles . | . . Parts Fried 6 | . 6 Impact Corruptions 9 | . 9 Robots Melted . | . . Combat Hostiles . | . . Parts Melted . | . . Heat Transferred 518 | . 518 Parts Sabotaged . | . . Parts Stolen . | . . Parts Stripped . | . . Power Chain Reactions 1 | . 1 Alert | -11 -10 ------- Run | Yrd Mat Peak Influence 245 | . 245 Initial . | . . Average 103 | . 111 Maximum Alert Level 1 | . 1 Low Security (%) 85 | 100 84 Level 1 14 | . 15 Level 2 . | . . Level 3 . | . . Level 4 . | . . Level 5 . | . . High Security . | . . Max Security . | . . Squads Dispatched 4 | . 4 Investigation . | . . Extermination . | . . Reinforcement 4 | . 4 Assault . | . . Garrison . | . . Intercept . | . . Searches Triggered . | . . Construction Impeded . | . . Haulers Reinforced . | . . Active Scanning Responses . | . . Cargo Convoy Interrupts . | . . Stealth | -11 -10 --------- Run | Yrd Mat Distress Signals 2 | . 2 Communications Jammed . | . . Distress Signals . | . . Times Spotted 33 | . 33 Peak Tracking Total 4 | . 4 Tactical Retreats 1 | . 1 Traps | -11 -10 ------- Run | Yrd Mat Traps Triggered . | . . Indirectly . | . . Trap Hack Attempts . | . . Triggered . | . . Disarmed . | . . Reprogrammed . | . . Reused . | . . Traps Extracted . | . . Installed . | . . Triggered . | . . Machines | -11 -10 ---------- Run | Yrd Mat Machines Disabled . | . . Max in Single Turn . | . . Machines Repaired . | . . Machines Dismantled . | . . Machines Sabotaged . | . . Overloaded Fab Kills . | . . Hacking | -11 -10 --------- Run | Yrd Mat Machines Accessed 4 | . 4 Terminals 2 | . 2 Fabricators . | . . Repair Stations . | . . Recycling Units 2 | . 2 Scanalyzers . | . . Garrison Access . | . . Total Hacks 12 | . 12 Successful 6 | . 6 Failed 6 | . 6 Catastrophic 1 | . 1 Database Lockouts . | . . Manual . | . . Terminals 8 | . 8 Fabricators . | . . Repair Stations . | . . Recycling Units 4 | . 4 Scanalyzers . | . . Garrison Access . | . . Terminal Hacks 3 | . 3 Terminal Index 1 | . 1 Registered Components 1 | . 1 Zone Layout 1 | . 1 Fabricator Hacks . | . . Repair Station Hacks . | . . Recycling Unit Hacks 3 | . 3 Report Inventory 2 | . 2 Retrieve Matter 1 | . 1 Scanalyzer . | . . Garrison Access Hacks . | . . Unauthorized Hacks . | . . Terminals . | . . Fabricators . | . . Repair Stations . | . . Recycling Units . | . . Scanalyzers . | . . Garrison Access . | . . Data Cores Recovered . | . . Used . | . . Hacking Detections 3 | . 3 Full Trace Events 1 | . 1 Feedback Events . | . . Feedback Blocked . | . . Robot Schematics Acquired . | . . Robots Built . | . . Authchips . | . . Time . | . . Total Robot Build Rating . | . . Part Schematics Acquired . | . . Parts Built . | . . Authchips . | . . Time . | . . Total Part Build Rating . | . . Parts Repaired . | . . Time . | . . Parts Recycled . | . . Recycled Matter . | . . Retrieved Matter . | . . Retrieved Components . | . . Parts Scanalyzed . | . . Part Schematics Acquired . | . . Parts Damaged . | . . Bothacking | -11 -10 ------------ Run | Yrd Mat Used RIF Installer . | . . Robots Hacked . | . . Non-combat . | . . Combat . | . . Robot Hacks Applied . | . . Relay Couplers Released . | . . Fabnet Peak Effective % . | . . Robots Rewired . | . . Allies Hacked . | . . Hacks Repelled . | . . Allies | -11 -10 -------- Run | Yrd Mat Total Allies . | . . Largest Group . | . . Highest-Rated Group . | . . Highest-Rated Ally . | . . Total Orders . | . . Ally Attacks . | . . Total Damage . | . . Kills . | . . Allies Corrupted . | . . Allies Melted . | . . Intel | -11 -10 ------- Run | Yrd Mat Robot Analysis Total . | . . Derelict Logs Recovered . | . . Drone Launches . | . . Drone Recoveries . | . . Exploration | -11 -10 ------------- Run | Yrd Mat Turns Passed 985 | 67 918 Spaces Moved 768 | 65 703 Core 6 | 6 . Treads . | . . Legs . | . . Wheels 762 | 59 703 Hover . | . . Flight . | . . Fastest Speed 50 | 50 90 Average Speed 92 | 87 92 Slowest Speed 115 | 100 115 Overloaded Moves . | . . Propulsion Burnouts . | . . Robots Hopped . | . . Cave-ins Triggered . | . . Exploration Rate (%) 46 | 4 89 Regions Visited 1 Branch Regions . Pre-discovered Areas . | . . Known Exits Taken . | . . Unknown Exits Taken 1 | 1 . Scrap Searched . | . . Spaces Dug 7 | . 7 Terrain Destroyed 10 | . 10 Melee 7 | . 7 Projectile . | . . AOE 3 | . 3 Terrain Rammed . | . . Walls Destroyed . | . . Machines Disabled . | . . Actions | -11 -10 --------- Run | Yrd Mat Total 913 | 72 841 Wait 43 | . 43 Move 767 | 64 703 Hop . | . . Pick Up 10 | 2 8 Fast Attach 8 | 6 2 Attach 6 | . 6 Detach 4 | . 4 Swap 4 | . 4 Drop 2 | . 2 Fire 33 | . 33 Melee 35 | . 35 Ram 1 | . 1 Kick . | . . Crush . | . . Escape Stasis . | . . Rewire . | . . Trap . | . . Miscellaneous . | . . Route ------- -11/Scrapyard -10/Materials (discovered 3 exits: [*Mat x3]) History --------- Turn | Location | Event 18 | -11/Scrapyard | Discovered new exit (range 16) 68 | -11/Scrapyard | Entered Materials 300 | -10/Materials | Build established: Mutant 354 | -10/Materials | Discovered new exit (range 4) 449 | -10/Materials | Discovered new exit (range 15) 526 | -10/Materials | Core integrity fell below 50% 647 | -10/Materials | Discovered new exit (range 3) 816 | -10/Materials | Core integrity fell below 20% 986 | -10/Materials | Destroyed by G-34 Mercenary with Small Laser Last Messages --------------- 00830_ S-10 Pest system corrupted by crushing effect. 00830_ S-10 Pest destroyed. 00831_ K-01 Serf collects debris. 00834_ Acquired 10 matter. 00835_ K-01 Serf collects debris. 00837_ Acquired 10 matter. 00839_ K-01 Serf collects debris. 00899_ Destroyed Datajack. 00915_ W-16 Scout destroyed. 00920_ Acquired 26 matter. 00922_ K-01 Serf collects debris. 00932_ Destroyed Hover Unit. 00935_ K-01 Serf collects debris. 00938_ O-16 Technician destroyed. 00938_ K-01 Serf collects debris. 00946_ Acquired 10 matter. 00948_ K-01 Serf collects debris. 00965_ K-01 Serf cleans the Matter Filter. 00969_ K-01 Serf collects debris. 00970_ K-01 Serf cleans the Matter Filter. Map ----- +----------------------------------------------------+ | | | | | | | | | | | | | | | | | | | | | | | | | ????????????????????????###########???????????? | | ????????????????????????# """ #???????????? | | ????????????????????????# """ #???????????? | | ????????????????????????# """ ############# | | ????????????????????????# * + | | ????????????????????????# # ^ | | ??????###########???????# # ^ | | ??????# #???????# "T" + | | ??????# ###?????# """ # ^ | | ??????# #############+##### ^ | | ??????# # # ## | | ??????# # < #### #### | | ??????# """ """ # #?# | | ??????# """ """ ##### @ #?# | | ??????# """ """ #???# T #?# | | ??????#####+#####???# """" #?# | | ????????# ####### """" ### | | ????????# g """" # | | ????????# """"" + | | ????????# """"" # | | ????????# ##### """"" #####" "##### | | ???????####+####### """"" #????"R"????## | | ???????# ! ## """"" #????????##### | | ???????# ## """"" #????????# | | ???????# """ """ ## """"" #?????????# | | ???????# """ """ ## g #?????????# | | ???????# """ """ ## ############## | | ######## """ """ ## """"" = [ | | # # """ """ # """"" * % | | # ! # + """"" ! | | # #+######### """"" * = | | # # #???##### """"" | | # # #### """"" | | # # """"" ######### | | # [ + #???????# # | | # # [ #???????# # | | # ###+## ##### #??????"# # | | # ## ###+####### ?????? | +----------------------------------------------------+ Best States ------------- Heat Dissipation 25 Energy Generation 10 Energy Capacity 250 Matter Stores 300 Matter Capacity 300 Sight Range 16 Robot Scan Range 14 Terrain Scan Density 10 Evasion (%) 42 Item Schematics ----------------- None Robot Schematics ------------------ None Fabricated ------------ Nothing Alien Tech Used ----------------- None Achievements -------------- None Challenges ------------ None Game ------ Seed EtherialRefineryDoublenader Manual? 0 Play Time 00:18:27 Cumulative 7.8 hours Start 2024.04.16 @ 23:11:08 End 2024.04.16 @ 23:29:24 Sessions 1 Manual Loads 0 Difficulty Rogue Special Mode None Game No. 7 Rogue 7 Adventurer 0 Explorer 0 Win Type - Total 0 Types 0/0/0/0/0/0/0/0/0 Lore% 9 Gallery% 9 Achievement% 9 Wizard Run 0 Options --------- Layout 0 ASCII 1 Keyboard 1 Movement Vi Keybinds 0 Fullscreen 1 Font 20/SmallcapsGlow Map View 66x50 Zoom Use 0% Tactical HUD 1 Map Filters NONE Filters NONE Steam 1 RUN: 0c5f7452-9d15-4e96-aa02-36b62bc8863f